[Event "TOP 12F 2021"]
[Site "RENNES, France"]
[Date "2021.08.28"]
[Round "4.8"]
[White "Fischer, Julie"]
[Black "Thomas, Apolline"]
[Result "1-0"]
[TimeControl "1H30 + 30 sec/coup"]
[WhiteElo "2073"]
[BlackElo "1954"]

1. e4 {[%clk 01:30:59]} {[%emt 00:00:01]} e5 {[%clk 01:30:27]} {[%emt
00:00:33]} 2. Nf3 {[%clk 01:31:24]} {[%emt 00:00:05]} Nc6 {[%clk 01:30:48]}
{[%emt 00:00:08]} 3. d4 {[%clk 01:31:47]} {[%emt 00:00:07]} exd4 {[%clk
01:31:15]} {[%emt 00:00:03]} 4. Nxd4 {[%clk 01:32:11]} {[%emt 00:00:06]} Bb4+
{[%clk 01:31:41]} {[%emt 00:00:04]} 5. c3 {[%clk 01:32:33]} {[%emt 00:00:08]}
Bc5 {[%clk 01:32:08]} {[%emt 00:00:03]} 6. Be3 {[%clk 01:32:58]} {[%emt
00:00:06]} Bb6 {[%clk 01:32:34]} {[%emt 00:00:03]} 7. Nf5 {[%clk 01:32:56]}
{[%emt 00:00:32]} g6 {[%clk 01:31:54]} {[%emt 00:01:10]} 8. Bxb6 {[%clk
01:31:01]} {[%emt 00:02:25]} axb6 {[%clk 01:32:20]} {[%emt 00:00:05]} 9. Ne3
{[%clk 01:28:49]} {[%emt 00:02:41]} Nf6 {[%clk 01:31:57]} {[%emt 00:00:54]} 10.
f3 {[%clk 01:21:44]} {[%emt 00:07:35]} O-O {[%clk 01:31:20]} {[%emt 00:01:05]}
11. c4 {[%clk 01:21:23]} {[%emt 00:00:52]} Re8 {[%clk 01:25:22]} {[%emt
00:06:28]} 12. Nc3 {[%clk 01:21:31]} {[%emt 00:00:22]} Nh5 {[%clk 01:22:58]}
{[%emt 00:02:54]} 13. Qd2 {[%clk 01:18:54]} {[%emt 00:03:06]} d6 {[%clk
01:07:24]} {[%emt 00:16:05]} 14. O-O-O {[%clk 01:16:34]} {[%emt 00:02:50]} Nb4
{[%clk 01:04:16]} {[%emt 00:03:38]} 15. Kb1 {[%clk 01:16:22]} {[%emt 00:00:42]}
Be6 {[%clk 00:47:44]} {[%emt 00:17:02]} 16. g4 {[%clk 01:13:37]} {[%emt
00:03:15]} Nf6 {[%clk 00:45:17]} {[%emt 00:02:57]} 17. h4 {[%clk 01:13:41]}
{[%emt 00:00:26]} Ra5 {[%clk 00:37:31]} {[%emt 00:08:16]} 18. h5 {[%clk
01:12:57]} {[%emt 00:01:14]} gxh5 {[%clk 00:34:28]} {[%emt 00:03:33]} 19. g5
{[%clk 01:04:17]} {[%emt 00:09:10]} Rxg5 {[%clk 00:27:23]} {[%emt 00:07:36]} 20.
Nc2 {[%clk 01:03:49]} {[%emt 00:00:58]} Rg3 {[%clk 00:20:49]} {[%emt 00:07:03]}
21. Nxb4 {[%clk 01:04:06]} {[%emt 00:00:12]} Rxf3 {[%clk 00:20:37]} {[%emt
00:00:43]} 22. Be2 {[%clk 01:00:54]} {[%emt 00:03:42]} Rg3 {[%clk 00:19:55]}
{[%emt 00:01:13]} 23. Qf4 {[%clk 00:59:06]} {[%emt 00:02:17]} Rg7 {[%clk
00:17:21]} {[%emt 00:03:03]} 24. Nbd5 {[%clk 00:58:46]} {[%emt 00:00:51]} Nxd5
{[%clk 00:14:09]} {[%emt 00:03:42]} 25. Nxd5 {[%clk 00:58:37]} {[%emt
00:00:38]} Bxd5 {[%clk 00:14:33]} {[%emt 00:00:06]} 26. Rxd5 {[%clk 00:58:45]}
{[%emt 00:00:23]} Qe7 {[%clk 00:09:51]} {[%emt 00:05:11]} 27. Bf3 {[%clk
00:59:09]} {[%emt 00:00:06]} Qe6 {[%clk 00:09:31]} {[%emt 00:00:50]} 28. b3
{[%clk 00:58:28]} {[%emt 00:01:12]} Qg6 {[%clk 00:08:52]} {[%emt 00:01:09]} 29.
Rdxh5 {[%clk 00:58:16]} {[%emt 00:00:42]} Re6 {[%clk 00:06:39]} {[%emt
00:02:42]} 30. Rh6 {[%clk 00:57:00]} {[%emt 00:01:46]} Qg3 {[%clk 00:07:05]}
{[%emt 00:00:03]} 31. Rxh7 {[%clk 00:55:18]} {[%emt 00:02:12]} Kf8 {[%clk
00:05:31]} {[%emt 00:02:04]} 32. Qxg3 {[%clk 00:53:56]} {[%emt 00:01:53]} Rxg3
{[%clk 00:05:54]} {[%emt 00:00:06]} 33. R7h3 {[%clk 00:53:33]} {[%emt
00:00:53]} Rg5 {[%clk 00:05:43]} {[%emt 00:00:41]} 34. Kc2 {[%clk 00:53:52]}
{[%emt 00:00:11]} Rf6 {[%clk 00:04:19]} {[%emt 00:01:54]} 35. Kd3 {[%clk
00:54:09]} {[%emt 00:00:14]} Ra5 {[%clk 00:04:16]} {[%emt 00:00:31]} 36. a4
{[%clk 00:54:32]} {[%emt 00:00:08]} Ke7 {[%clk 00:03:44]} {[%emt 00:01:02]} 37.
Ke3 {[%clk 00:54:26]} {[%emt 00:00:36]} Rg5 {[%clk 00:02:31]} {[%emt 00:01:43]}
38. Rh6 {[%clk 00:54:43]} {[%emt 00:00:13]} Rxh6 {[%clk 00:01:49]} {[%emt
00:01:13]} 39. Rxh6 {[%clk 00:55:08]} {[%emt 00:00:05]} Rg8 {[%clk 00:02:13]}
{[%emt 00:00:05]} 40. Kf4 {[%clk 00:55:21]} {[%emt 00:00:16]} c6 {[%clk
00:01:55]} {[%emt 00:00:49]} 41. Bg4 {[%clk 00:55:26]} {[%emt 00:00:26]} Rd8
{[%clk 00:01:09]} {[%emt 00:01:15]} 42. Kf5 {[%clk 00:55:09]} {[%emt 00:00:48]}
Rg8 {[%clk 00:00:44]} {[%emt 00:00:55]} 43. Kf4 {[%clk 00:53:03]} {[%emt
00:02:36]} Rd8 {[%clk 00:01:09]} {[%emt 00:00:05]} 44. Bh5 {[%clk 00:53:22]}
{[%emt 00:00:11]} Rg8 {[%clk 00:00:34]} {[%emt 00:01:04]} 45. Rh7 {[%clk
00:53:45]} {[%emt 00:00:07]} Rf8 {[%clk 00:01:00]} {[%emt 00:00:04]} 46. Kf5
{[%clk 00:54:10]} {[%emt 00:00:06]} 1-0

[Event "TOP 12F 2021"]
[Site "RENNES, France"]
[Date "2021.08.28"]
[Round "4.9"]
[White "Benmesbah, Natacha"]
[Black "Auvray, Juliette"]
[Result "1-0"]
[TimeControl "1H30 + 30 sec/coup"]
[WhiteElo "2239"]
[BlackElo "2004"]

1. e4 {[%clk 01:30:58]} {[%emt 00:00:01]} c5 {[%clk 01:30:54]} {[%emt
00:00:07]} 2. Nf3 {[%clk 01:31:24]} {[%emt 00:00:03]} d6 {[%clk 01:31:17]}
{[%emt 00:00:08]} 3. Bb5+ {[%clk 01:31:48]} {[%emt 00:00:06]} Bd7 {[%clk
01:31:14]} {[%emt 00:00:33]} 4. Bxd7+ {[%clk 01:32:12]} {[%emt 00:00:06]} Qxd7
{[%clk 01:31:35]} {[%emt 00:00:09]} 5. O-O {[%clk 01:32:37]} {[%emt 00:00:05]}
Nc6 {[%clk 01:31:10]} {[%emt 00:00:54]} 6. c3 {[%clk 01:32:59]} {[%emt
00:00:08]} d5 {[%clk 01:28:48]} {[%emt 00:02:53]} 7. exd5 {[%clk 01:29:12]}
{[%emt 00:04:17]} Qxd5 {[%clk 01:29:10]} {[%emt 00:00:07]} 8. d4 {[%clk
01:29:38]} {[%emt 00:00:04]} e6 {[%clk 01:28:25]} {[%emt 00:01:15]} 9. Be3
{[%clk 01:24:56]} {[%emt 00:05:12]} cxd4 {[%clk 01:26:31]} {[%emt 00:02:24]} 10.
Nxd4 {[%clk 01:18:51]} {[%emt 00:06:35]} Nf6 {[%clk 01:21:40]} {[%emt
00:05:21]} 11. Qa4 {[%clk 01:16:24]} {[%emt 00:02:57]} a6 {[%clk 01:08:55]}
{[%emt 00:13:15]} 12. Rd1 {[%clk 01:04:22]} {[%emt 00:12:32]} Be7 {[%clk
01:00:42]} {[%emt 00:08:42]} 13. Nxc6 {[%clk 00:57:55]} {[%emt 00:06:57]} Qxc6
{[%clk 01:01:00]} {[%emt 00:00:11]} 14. Qxc6+ {[%clk 00:58:21]} {[%emt
00:00:04]} bxc6 {[%clk 01:01:20]} {[%emt 00:00:11]} 15. c4 {[%clk 00:57:49]}
{[%emt 00:01:02]} O-O {[%clk 00:52:21]} {[%emt 00:09:29]} 16. h3 {[%clk
00:56:38]} {[%emt 00:01:41]} Rab8 {[%clk 00:48:59]} {[%emt 00:03:51]} 17. b3
{[%clk 00:56:50]} {[%emt 00:00:19]} Ne4 {[%clk 00:43:49]} {[%emt 00:05:40]} 18.
Nd2 {[%clk 00:53:55]} {[%emt 00:03:25]} Nc3 {[%clk 00:38:57]} {[%emt 00:05:21]}
19. Re1 {[%clk 00:54:20]} {[%emt 00:00:05]} Bf6 {[%clk 00:37:23]} {[%emt
00:02:04]} 20. Kf1 {[%clk 00:54:30]} {[%emt 00:00:20]} Rfd8 {[%clk 00:33:56]}
{[%emt 00:03:57]} 21. Nf3 {[%clk 00:51:29]} {[%emt 00:03:31]} h6 {[%clk
00:29:09]} {[%emt 00:05:17]} 22. Bf4 {[%clk 00:50:56]} {[%emt 00:01:03]} Rbc8
{[%clk 00:26:33]} {[%emt 00:03:06]} 23. Be5 {[%clk 00:45:21]} {[%emt 00:06:05]}
Bxe5 {[%clk 00:24:09]} {[%emt 00:02:54]} 24. Nxe5 {[%clk 00:43:48]} {[%emt
00:02:04]} Rd2 {[%clk 00:16:15]} {[%emt 00:08:25]} 25. Nf3 {[%clk 00:35:33]}
{[%emt 00:08:45]} Rd3 {[%clk 00:13:35]} {[%emt 00:03:10]} 26. a3 {[%clk
00:34:17]} {[%emt 00:01:46]} c5 {[%clk 00:11:25]} {[%emt 00:02:39]} 27. Rac1
{[%clk 00:33:28]} {[%emt 00:01:19]} f6 {[%clk 00:04:39]} {[%emt 00:07:17]} 28.
Rxe6 {[%clk 00:33:44]} {[%emt 00:00:13]} Rd1+ {[%clk 00:03:29]} {[%emt
00:01:40]} 29. Rxd1 {[%clk 00:31:32]} {[%emt 00:02:41]} Nxd1 {[%clk 00:03:54]}
{[%emt 00:00:04]} 30. Rxa6 {[%clk 00:30:06]} {[%emt 00:01:58]} Nc3 {[%clk
00:00:44]} {[%emt 00:03:40]} 31. Rd6 {[%clk 00:29:05]} {[%emt 00:01:30]} Ne4
{[%clk 00:00:48]} {[%emt 00:00:26]} 32. Rd5 {[%clk 00:29:29]} {[%emt 00:00:06]}
Rb8 {[%clk 00:00:37]} {[%emt 00:00:41]} 33. Nd2 {[%clk 00:28:55]} {[%emt
00:01:04]} Nxd2+ {[%clk 00:00:50]} {[%emt 00:00:18]} 34. Rxd2 {[%clk 00:29:21]}
{[%emt 00:00:04]} Rxb3 {[%clk 00:01:14]} {[%emt 00:00:06]} 35. Ra2 {[%clk
00:29:48]} {[%emt 00:00:03]} Rb6 {[%clk 00:01:10]} {[%emt 00:00:34]} 36. a4
{[%clk 00:30:14]} {[%emt 00:00:05]} Kf7 {[%clk 00:01:31]} {[%emt 00:00:09]} 37.
a5 {[%clk 00:30:40]} {[%emt 00:00:04]} Ra6 {[%clk 00:01:56]} {[%emt 00:00:04]}
38. Ke2 {[%clk 00:31:07]} {[%emt 00:00:03]} Ke6 {[%clk 00:02:06]} {[%emt
00:00:20]} 39. Kd3 {[%clk 00:31:27]} {[%emt 00:00:10]} g5 {[%clk 00:00:54]}
{[%emt 00:01:42]} 40. Kc3 {[%clk 00:31:46]} {[%emt 00:00:11]} Ke5 {[%clk
00:00:57]} {[%emt 00:00:27]} 41. Kb3 {[%clk 00:32:02]} {[%emt 00:00:14]} Ra8
{[%clk 00:00:33]} {[%emt 00:00:55]} 42. a6 {[%clk 00:31:32]} {[%emt 00:00:59]}
f5 {[%clk 00:00:55]} {[%emt 00:00:09]} 43. a7 {[%clk 00:30:57]} {[%emt
00:01:05]} Kd4 {[%clk 00:00:53]} {[%emt 00:00:32]} 44. Rd2+ {[%clk 00:31:07]}
{[%emt 00:00:20]} Ke4 {[%clk 00:01:10]} {[%emt 00:00:14]} 45. Re2+ {[%clk
00:31:10]} {[%emt 00:00:26]} Kd4 {[%clk 00:01:02]} {[%emt 00:00:39]} 46. Re7
{[%clk 00:30:56]} {[%emt 00:00:44]} Kd3 {[%clk 00:00:50]} {[%emt 00:00:42]} 47.
g3 {[%clk 00:26:39]} {[%emt 00:04:47]} f4 {[%clk 00:00:46]} {[%emt 00:00:34]}
48. gxf4 {[%clk 00:25:58]} {[%emt 00:01:11]} gxf4 {[%clk 00:01:14]} {[%emt
00:00:02]} 49. h4 {[%clk 00:26:09]} {[%emt 00:00:18]} Kd4 {[%clk 00:01:00]}
{[%emt 00:00:44]} 50. Rd7+ {[%clk 00:20:27]} {[%emt 00:06:13]} Ke4 {[%clk
00:01:20]} {[%emt 00:00:09]} 51. Ka4 {[%clk 00:20:53]} {[%emt 00:00:04]} Kf3
{[%clk 00:00:40]} {[%emt 00:01:11]} 52. Kb5 {[%clk 00:21:15]} {[%emt 00:00:07]}
Kxf2 {[%clk 00:00:54]} {[%emt 00:00:16]} 53. Kxc5 {[%clk 00:20:43]} {[%emt
00:01:02]} Kg3 {[%clk 00:00:47]} {[%emt 00:00:38]} 54. Rf7 {[%clk 00:20:09]}
{[%emt 00:01:03]} f3 {[%clk 00:01:02]} {[%emt 00:00:15]} 55. Kb6 {[%clk
00:20:34]} {[%emt 00:00:06]} Kxh4 {[%clk 00:00:38]} {[%emt 00:00:54]} 56. Rxf3
{[%clk 00:20:48]} {[%emt 00:00:17]} Kg4 {[%clk 00:00:56]} {[%emt 00:00:12]} 57.
Rf7 {[%clk 00:21:05]} {[%emt 00:00:12]} 1-0

[Event "TOP 12F 2021"]
[Site "RENNES, France"]
[Date "2021.08.28"]
[Round "4.10"]
[White "Coriat, Caroline"]
[Black "Afraoui, Anaelle"]
[Result "0-1"]
[TimeControl "1H30 + 30 sec/coup"]
[WhiteElo "1784"]
[BlackElo "2118"]

1. c4 {[%clk 01:30:58]} {[%emt 00:00:02]} g6 {[%clk 01:30:53]} {[%emt
00:00:07]} 2. Nc3 {[%clk 01:31:20]} {[%emt 00:00:09]} Bg7 {[%clk 01:31:17]}
{[%emt 00:00:06]} 3. d4 {[%clk 01:31:01]} {[%emt 00:00:49]} d6 {[%emt
00:00:11]} 4. Nf3 {[%clk 01:30:53]} {[%emt 00:00:34]} Nd7 {[%clk 01:31:01]}
{[%emt 00:01:09]} 5. g3 {[%clk 01:26:34]} {[%emt 00:04:50]} e5 {[%clk
01:31:22]} {[%emt 00:00:09]} 6. Bg2 {[%clk 01:22:16]} {[%emt 00:04:48]} Ne7
{[%clk 01:30:54]} {[%emt 00:00:58]} 7. O-O {[%clk 01:22:00]} {[%emt 00:00:45]}
O-O {[%clk 01:31:18]} {[%emt 00:00:06]} 8. dxe5 {[%clk 01:18:06]} {[%emt
00:04:25]} dxe5 {[%clk 01:30:11]} {[%emt 00:01:37]} 9. e4 {[%clk 01:12:44]}
{[%emt 00:05:52]} Nc5 {[%clk 01:18:53]} {[%emt 00:11:47]} 10. Be3 {[%clk
01:08:20]} {[%emt 00:04:54]} Ne6 {[%clk 01:16:04]} {[%emt 00:03:19]} 11. Qxd8
{[%clk 01:03:12]} {[%emt 00:05:39]} Rxd8 {[%clk 01:15:44]} {[%emt 00:00:50]} 12.
Rfd1 {[%clk 01:01:44]} {[%emt 00:01:59]} Nd4 {[%clk 01:11:38]} {[%emt
00:04:36]} 13. Bxd4 {[%clk 00:50:09]} {[%emt 00:12:05]} exd4 {[%clk 01:12:00]}
{[%emt 00:00:08]} 14. Nd5 {[%clk 00:49:45]} {[%emt 00:00:54]} Nxd5 {[%clk
01:10:37]} {[%emt 00:01:53]} 15. cxd5 {[%clk 00:50:00]} {[%emt 00:00:15]} c5
{[%clk 01:02:47]} {[%emt 00:08:20]} 16. Rac1 {[%clk 00:48:52]} {[%emt
00:01:38]} b6 {[%clk 01:00:49]} {[%emt 00:02:28]} 17. b4 {[%clk 00:47:40]}
{[%emt 00:01:42]} Bh6 {[%clk 00:59:47]} {[%emt 00:01:31]} 18. Rc2 {[%clk
00:37:14]} {[%emt 00:10:55]} Bd7 {[%clk 00:58:44]} {[%emt 00:01:34]} 19. Rb2
{[%clk 00:31:49]} {[%emt 00:05:56]} Ba4 {[%clk 00:55:22]} {[%emt 00:03:52]} 20.
Rdb1 {[%clk 00:27:47]} {[%emt 00:04:32]} d3 {[%clk 00:43:20]} {[%emt 00:12:32]}
21. Ne1 {[%clk 00:20:28]} {[%emt 00:07:49]} c4 {[%clk 00:36:36]} {[%emt
00:07:14]} 22. Nxd3 {[%clk 00:16:01]} {[%emt 00:04:57]} cxd3 {[%clk 00:36:59]}
{[%emt 00:00:07]} 23. f4 {[%clk 00:16:27]} {[%emt 00:00:03]} Bc2 {[%clk
00:33:42]} {[%emt 00:03:47]} 24. Rf1 {[%clk 00:14:57]} {[%emt 00:02:00]} Rac8
{[%clk 00:27:35]} {[%emt 00:06:38]} 25. Bf3 {[%clk 00:13:54]} {[%emt 00:01:33]}
g5 {[%clk 00:24:53]} {[%emt 00:03:11]} 26. fxg5 {[%clk 00:13:25]} {[%emt
00:00:59]} Bg7 {[%clk 00:24:55]} {[%emt 00:00:27]} 0-1

[Event "TOP 12F 2021"]
[Site "RENNES, France"]
[Date "2021.08.28"]
[Round "4.11"]
[White "Boutant, Jade"]
[Black "Bonvalot, Isabelle"]
[Result "0-1"]
[TimeControl "1H30 + 30 sec/coup"]
[WhiteElo "1747"]
[BlackElo "1831"]

1. c4 {[%clk 01:30:57]} {[%emt 00:00:02]} g6 {[%clk 01:30:56]} {[%emt
00:00:05]} 2. Nc3 {[%clk 01:31:10]} {[%emt 00:00:16]} Bg7 {[%clk 01:30:58]}
{[%emt 00:00:29]} 3. d4 {[%clk 01:31:22]} {[%emt 00:00:18]} f5 {[%clk
01:31:02]} {[%emt 00:00:26]} 4. Nf3 {[%clk 01:31:22]} {[%emt 00:00:29]} Nf6
{[%clk 01:31:29]} {[%emt 00:00:04]} 5. g3 {[%clk 01:30:58]} {[%emt 00:00:53]}
d6 {[%clk 01:31:55]} {[%emt 00:00:04]} 6. Bg2 {[%clk 01:31:13]} {[%emt
00:00:15]} O-O {[%clk 01:32:20]} {[%emt 00:00:05]} 7. O-O {[%clk 01:31:31]}
{[%emt 00:00:12]} c6 {[%clk 01:32:44]} {[%emt 00:00:06]} 8. d5 {[%clk
01:28:51]} {[%emt 00:03:11]} e5 {[%clk 01:32:52]} {[%emt 00:00:21]} 9. Bg5
{[%clk 01:22:52]} {[%emt 00:06:29]} c5 {[%clk 01:31:52]} {[%emt 00:01:32]} 10.
e4 {[%clk 01:17:32]} {[%emt 00:05:48]} h6 {[%clk 01:29:04]} {[%emt 00:03:18]}
11. Bxf6 {[%clk 01:14:59]} {[%emt 00:03:04]} Qxf6 {[%clk 01:29:06]} {[%emt
00:00:28]} 12. exf5 {[%clk 01:13:04]} {[%emt 00:02:25]} gxf5 {[%clk 01:29:19]}
{[%emt 00:00:18]} 13. Nh4 {[%clk 01:06:26]} {[%emt 00:07:07]} Bd7 {[%clk
01:20:16]} {[%emt 00:09:34]} 14. Bh3 {[%clk 01:02:25]} {[%emt 00:04:30]} Qg5
{[%clk 01:14:39]} {[%emt 00:06:08]} 15. Kh1 {[%clk 00:48:36]} {[%emt 00:14:14]}
Na6 {[%clk 01:11:09]} {[%emt 00:04:05]} 16. Ne4 {[%clk 00:42:31]} {[%emt
00:06:35]} fxe4 {[%clk 01:01:36]} {[%emt 00:10:04]} 17. Bxd7 {[%clk 00:42:53]}
{[%emt 00:00:08]} Rf6 {[%clk 01:01:40]} {[%emt 00:00:25]} 18. Qg4 {[%clk
00:35:42]} {[%emt 00:07:39]} Qxg4 {[%clk 00:59:22]} {[%emt 00:02:51]} 19. Bxg4
{[%clk 00:36:02]} {[%emt 00:00:09]} Raf8 {[%clk 00:59:20]} {[%emt 00:00:33]} 20.
Kg1 {[%clk 00:35:17]} {[%emt 00:01:12]} Nb4 {[%clk 00:59:19]} {[%emt 00:00:35]}
21. f3 {[%clk 00:28:23]} {[%emt 00:07:23]} exf3 {[%clk 00:55:37]} {[%emt
00:04:12]} 22. Rxf3 {[%clk 00:22:04]} {[%emt 00:06:48]} Rxf3 {[%clk 00:55:15]}
{[%emt 00:00:54]} 23. Bxf3 {[%clk 00:21:10]} {[%emt 00:01:23]} Nd3 {[%clk
00:53:38]} {[%emt 00:02:08]} 24. Be4 {[%clk 00:13:35]} {[%emt 00:08:05]} Nxb2
{[%clk 00:49:32]} {[%emt 00:04:36]} 25. Rb1 {[%clk 00:13:19]} {[%emt 00:00:45]}
Nxc4 {[%clk 00:49:45]} {[%emt 00:00:17]} 26. Rxb7 {[%clk 00:13:29]} {[%emt
00:00:20]} Nd2 {[%clk 00:49:43]} {[%emt 00:00:32]} 27. Bf5 {[%clk 00:12:46]}
{[%emt 00:01:12]} Nf3+ {[%clk 00:42:50]} {[%emt 00:07:24]} 28. Nxf3 {[%clk
00:12:12]} {[%emt 00:01:05]} Rxf5 {[%clk 00:42:22]} {[%emt 00:00:58]} 29. Nd2
{[%clk 00:11:23]} {[%emt 00:01:16]} e4 {[%clk 00:37:49]} {[%emt 00:05:05]} 30.
Nxe4 {[%clk 00:10:24]} {[%emt 00:01:28]} Rxd5 {[%clk 00:37:55]} {[%emt
00:00:25]} 31. Rxa7 {[%clk 00:08:05]} {[%emt 00:02:50]} Rd4 {[%clk 00:35:36]}
{[%emt 00:02:48]} 32. Nc3 {[%clk 00:04:33]} {[%emt 00:04:01]} Rd3 {[%clk
00:35:14]} {[%emt 00:00:53]} 33. Nb5 {[%clk 00:03:19]} {[%emt 00:01:43]} c4
{[%clk 00:34:48]} {[%emt 00:00:58]} 34. Ra8+ {[%clk 00:02:13]} {[%emt
00:01:35]} Kf7 {[%clk 00:34:55]} {[%emt 00:00:23]} 35. Ra7+ {[%clk 00:00:55]}
{[%emt 00:01:48]} Kg6 {[%clk 00:35:18]} {[%emt 00:00:07]} 36. Rc7 {[%clk
00:00:43]} {[%emt 00:00:42]} c3 {[%clk 00:34:28]} {[%emt 00:01:22]} 37. Kf1
{[%clk 00:00:35]} {[%emt 00:00:38]} d5 {[%clk 00:34:31]} {[%emt 00:00:27]} 38.
a4 {[%clk 00:00:38]} {[%emt 00:00:27]} Rd1+ {[%clk 00:33:27]} {[%emt 00:01:33]}
39. Ke2 {[%clk 00:00:42]} {[%emt 00:00:26]} Rd2+ {[%clk 00:33:53]} {[%emt
00:00:04]} 40. Ke1 {[%clk 00:00:44]} {[%emt 00:00:28]} d4 {[%clk 00:34:17]}
{[%emt 00:00:07]} 41. a5 {[%clk 00:00:37]} {[%emt 00:00:37]} Ra2 {[%clk
00:34:34]} {[%emt 00:00:12]} 42. Rc6+ {[%clk 00:00:44]} {[%emt 00:00:23]} Kf5
{[%clk 00:34:08]} {[%emt 00:00:56]} 43. a6 {[%clk 00:00:36]} {[%emt 00:00:38]}
Ke4 {[%clk 00:30:28]} {[%emt 00:04:10]} 44. a7 {[%clk 00:00:34]} {[%emt
00:00:32]} Ke3 {[%clk 00:29:02]} {[%emt 00:01:57]} 45. Re6+ {[%clk 00:00:38]}
{[%emt 00:00:25]} Kf3 {[%clk 00:28:09]} {[%emt 00:01:24]} 46. Rd6 {[%clk
00:00:34]} {[%emt 00:00:34]} Ra1# {[%clk 00:28:19]} {[%emt 00:00:20]} 0-1

[Event "TOP 12F 2021"]
[Site "RENNES, France"]
[Date "2021.08.28"]
[Round "4.12"]
[White "Demais, Eilean"]
[Black "Parot de Sousa, Sophie"]
[Result "1/2-1/2"]
[TimeControl "1H30 + 30 sec/coup"]
[WhiteElo "1463"]
[BlackElo "1447"]

1. e4 {[%clk 01:30:56]} {[%emt 00:00:04]} c5 {[%clk 01:30:36]} {[%emt
00:00:24]} 2. Nc3 {[%clk 01:31:02]} {[%emt 00:00:22]} Nc6 {[%clk 01:30:48]}
{[%emt 00:00:20]} 3. g3 {[%clk 01:31:06]} {[%emt 00:00:26]} g6 {[%clk
01:30:16]} {[%emt 00:01:02]} 4. Bg2 {[%clk 01:31:06]} {[%emt 00:00:29]} Bg7
{[%clk 01:30:26]} {[%emt 00:00:21]} 5. d3 {[%clk 01:30:42]} {[%emt 00:00:54]}
Nf6 {[%clk 01:26:54]} {[%emt 00:04:02]} 6. Be3 {[%clk 01:28:24]} {[%emt
00:02:48]} d6 {[%clk 01:26:22]} {[%emt 00:01:02]} 7. Qd2 {[%clk 01:26:31]}
{[%emt 00:02:23]} O-O {[%clk 01:08:48]} {[%emt 00:18:04]} 8. Bh6 {[%clk
01:24:52]} {[%emt 00:02:09]} Bg4 {[%clk 00:54:01]} {[%emt 00:15:18]} 9. Bxg7
{[%clk 01:21:48]} {[%emt 00:03:33]} Kxg7 {[%clk 00:54:20]} {[%emt 00:00:11]} 10.
Nge2 {[%clk 01:19:51]} {[%emt 00:02:27]} Qc8 {[%clk 00:41:57]} {[%emt
00:12:53]} 11. O-O {[%clk 01:18:22]} {[%emt 00:01:59]} Bh3 {[%clk 00:38:45]}
{[%emt 00:03:43]} 12. f4 {[%clk 01:10:58]} {[%emt 00:07:52]} Bxg2 {[%clk
00:35:00]} {[%emt 00:04:16]} 13. Kxg2 {[%clk 01:11:15]} {[%emt 00:00:13]} a6
{[%clk 00:30:47]} {[%emt 00:04:43]} 14. f5 {[%clk 01:03:14]} {[%emt 00:08:31]}
e6 {[%clk 00:21:23]} {[%emt 00:09:54]} 15. fxg6 {[%clk 00:56:22]} {[%emt
00:07:21]} fxg6 {[%clk 00:17:42]} {[%emt 00:04:12]} 16. h3 {[%clk 00:44:58]}
{[%emt 00:11:54]} b5 {[%clk 00:14:46]} {[%emt 00:03:26]} 17. Rf2 {[%clk
00:41:39]} {[%emt 00:03:48]} Nh5 {[%clk 00:11:44]} {[%emt 00:03:32]} 18. Raf1
{[%clk 00:40:41]} {[%emt 00:01:27]} Rxf2+ {[%clk 00:11:44]} {[%emt 00:00:31]}
19. Rxf2 {[%clk 00:41:09]} {[%emt 00:00:01]} Qd8 {[%clk 00:09:11]} {[%emt
00:03:03]} 20. Nf4 {[%clk 00:37:35]} {[%emt 00:04:03]} Nxf4+ {[%clk 00:08:52]}
{[%emt 00:00:50]} 21. Qxf4 {[%clk 00:37:45]} {[%emt 00:00:20]} Qe7 {[%clk
00:07:16]} {[%emt 00:02:06]} 22. Ne2 {[%clk 00:34:43]} {[%emt 00:03:31]} Rf8
{[%clk 00:05:46]} {[%emt 00:02:01]} 23. Qxf8+ {[%clk 00:34:18]} {[%emt
00:00:55]} Qxf8 {[%clk 00:06:12]} {[%emt 00:00:04]} 24. Rxf8 {[%clk 00:34:46]}
{[%emt 00:00:02]} Kxf8 {[%clk 00:06:32]} {[%emt 00:00:10]} 25. Kf3 {[%clk
00:34:27]} {[%emt 00:00:48]} Kf7 {[%clk 00:06:23]} {[%emt 00:00:40]} 26. c3
{[%clk 00:27:39]} {[%emt 00:07:17]} a5 {[%clk 00:05:38]} {[%emt 00:01:16]} 27.
h4 {[%clk 00:23:33]} {[%emt 00:04:36]} Ne5+ {[%clk 00:05:01]} {[%emt 00:01:08]}
28. Ke3 {[%clk 00:23:18]} {[%emt 00:00:43]} Ng4+ {[%clk 00:05:13]} {[%emt
00:00:19]} 29. Kf3 {[%clk 00:21:39]} {[%emt 00:02:07]} Ne5+ {[%clk 00:05:14]}
{[%emt 00:00:31]} 30. Ke3 {[%clk 00:21:52]} {[%emt 00:00:17]} Ng4+ {[%clk
00:05:38]} {[%emt 00:00:06]} 31. Kf3 {[%clk 00:22:09]} {[%emt 00:00:12]}
1/2-1/2